[Event "Icelandic Championship 2024"]
[Site "Mosfellsbaer"]
[Date "2024.04.21"]
[Round "6.6"]
[White "Birkisson, Bardur Orn"]
[Black "Ptacnikova, Lenka"]
[Result "1-0"]
[ECO "C66"]
[WhiteElo "2169"]
[BlackElo "2127"]
[Annotator "TA"]
[PlyCount "113"]
[EventDate "2024.04.16"]
[EventType "tourn"]
[EventCountry "ISL"]
[SourceTitle "playchess.com"]
[Source "ChessBase"]
[SourceQuality "1"]
[TimeControl "40/5400+30:1800+30"]

{[%evp 27,113,89,91,89,79,89,89,86,83,79,78,85,85,86,76,81,80,75,93,99,101,100,87,88,211,0,70,0,0,-1,263,35,33,23,27,26,26,28,31,15,15,15,44,44,44,44,44,44,44,44,44,35,42,42,42,42,42,42,138,138,135,120,139,139,397,388,309,316,356,313,485,484,462,462,478,412,450,450,422,371,443,443,1133,592,29980,29980,29979,29980]} 1. e4 {[%emt 0:00:05]} e5 {[%emt 0:00:06]} 2. Nf3 {[%emt 0:00:14]} Nc6 {[%emt 0:00:07]} 3. Bb5 {[%emt 0:01:30]} a6 {[%emt 0:00:12]} 4. Ba4 {[%emt 0:00:11]} Nf6 {[%emt 0:02:38]} 5. O-O {[%emt 0:02:27]} d6 {[%emt 0:00:00]} 6. c3 {[%emt 0:04:01]} Bd7 {[%emt 0:06:37] is recently more successful than 6...Be7.} 7. Re1 {[%emt 0:02:22]} g6 {[%emt 0:01:00] C66: Ruy Lopez: Steinitz Defence.} 8. h3 {[%emt 0:03:53]} Bg7 {[%emt 0:00:15]} 9. d4 {[%emt 0:00:49]} b5 {[%emt 0:06:53]} 10. Bc2 {[%emt 0:01:51]} h6 {[%emt 0:00:12]} 11. Nbd2 {[%emt 0:12:23]} exd4 $146 {[%emt 0:06:44]} ({Predecessor:} 11... O-O 12. Nf1 Re8 13. Ng3 Rb8 14. a3 Na5 15. b3 c5 16. Be3 Qc7 17. d5 Kh7 {½-½ Robson,R (2675)-Borisek,J (2565) PRO League Stage rapid 2017 (5)}) 12. e5 {[%emt 0:12:37]} dxe5 {[%emt 0:00:43]} 13. cxd4 {[%emt 0:00:21]} e4 {[%emt 0:14:51]} 14. Nxe4 {[%emt 0:03:35]} (14. Bxe4 O-O $11) 14... O-O {[%emt 0:02:23]} 15. Nc5 {[%emt 0:01:29]} Bc8 {[%emt 0:08:41]} 16. Bf4 {[%emt 0:05:39]} Nd5 {[%emt 0:00:44]} 17. Bg3 {[%emt 0:03:07]} Nde7 {[%emt 0:10:53]} 18. Be4 {[%emt 0:17:24]} Bf5 {[%emt 0:03:36]} 19. Rc1 {[%emt 0:00:50]} Bxe4 {[%emt 0:01:32]} 20. Nxe4 {[%emt 0:02:35]} Nxd4 {[%emt 0:06:50]} 21. Bxc7 {[%emt 0:00:24]} (21. Rxc7 Nef5 22. Bf4 Re8 $11) 21... Qd5 {[%emt 0:03:43]} 22. Bd6 {[%emt 0:08:48]} Rfe8 {[%emt 0:01:02]} 23. Rc5 {[%emt 0:06:13]} Nxf3+ {[%emt 0:00:49]} 24. Qxf3 {[%emt 0:00:07]} Qe6 {[%emt 0:02:05] [#]} 25. Be5 $1 {[%emt 0:00:18]} Qf5 {[%emt 0:11:02] [#]} (25... Bxe5 $2 26. Rxe5 Qxe5 27. Nf6+ $18) (25... b4 $16) 26. Qc3 $2 {[%emt 0:01:14]} ({White must play} 26. Bf4 $1 $18 Qe6 (26... Nd5 $2 27. Rxd5 Qxd5 28. Nf6+ Bxf6 29. Rxe8+ Rxe8 30. Qxd5 $18) 27. Bxh6) 26... b4 {[%emt 0:04:24]} (26... Nd5 $1 $11 27. Rxd5 Rxe5 28. Nf6+ Bxf6 29. Rdxe5 Bxe5 30. Qxe5 Qxe5 31. Rxe5 Rc8) 27. Qg3 {[%emt 0:02:47]} (27. Qxb4 Bxe5 28. Ng3 Qf4 $11) (27. Qc4 $1 $14 Bxe5 28. Ng3) 27... Nd5 $11 {[%emt 0:02:47]} 28. f4 {[%emt 0:06:18]} Bxe5 $4 {[%emt 0:03:07][%mdl 8192]} (28... Rad8 $11) 29. Rxd5 $2 {[%emt 0:00:52]} (29. fxe5 $18 Rxe5 30. Nf6+ Qxf6 31. Qxe5 (31. Rxe5 Nf4 $18) 31... Qxe5 32. Rxe5) 29... Bxf4 $1 $14 {[%emt 0:00:15]} (29... Qxf4 $2 30. Qxf4 Bxf4 31. Nf6+ Kf8 32. Rxe8+ (32. Nxe8 Rxe8 33. Rxe8+ Kxe8 $18) 32... Rxe8 33. Nxe8 Kxe8 34. Ra5 $18) 30. Qf3 $1 {[%emt 0:00:26]} Be5 {[%emt 0:00:30]} (30... Qxd5 $2 31. Nf6+ (31. Qxf4 $2 Qd4+ 32. Kh2 Re6 $19) 31... Kg7 32. Nxd5 $18 (32. Nxe8+ Rxe8 33. Qxd5 Rxe1+ 34. Kf2 Re5 $11)) (30... Be3+ $2 31. Qxe3 Re5 32. Nf6+ Qxf6 33. Qxe5 $18 (33. Rxe5 g5 $18)) 31. Qxf5 {[%emt 0:00:37]} gxf5 {[%emt 0:00:04]} 32. Rxe5 $1 {[%emt 0:00:21]} fxe4 {[%emt 0:00:28]} 33. R1xe4 {[%emt 0:00:17]} Rxe5 {[%emt 0:00:07]} 34. Rxe5 {[%emt 0:00:04]} Rc8 {[%emt 0:00:25]} 35. Ra5 {[%emt 0:00:51]} Rc1+ {[%emt 0:00:28]} 36. Kh2 {[%emt 0:00:06]} Rc2 {[%emt 0:00:03]} 37. b3 {[%emt 0:00:22]} Rc6 {[%emt 0:00:04]} 38. Ra4 {[%emt 0:00:28]} Rb6 {[%emt 0:00:13]} 39. g4 {[%emt 0:00:20]} Kg7 {[%emt 0:00:23]} 40. Kg3 {[%emt 0:00:08]} Kg6 {[%emt 0:00:56]} 41. Ra5 {[%emt 0:30:45]} Rd6 {[%emt 0:07:09]} 42. Kf4 {[%emt 0:00:00]} f6 {[%emt 0:02:35]} (42... Re6 $14) 43. h4 $16 {[%emt 0:00:00]} Rd4+ {[%emt 0:12:52]} 44. Kf3 {[%emt 0:00:00]} Rd3+ {[%emt 0:00:13]} 45. Ke4 {[%emt 0:00:00]} Rh3 $2 {[%emt 0:05:36][%mdl 8192]} (45... Rd1 $16 46. h5+ (46. Rxa6 Rh1 $11) 46... Kf7 47. Rxa6 Rg1) 46. h5+ $18 {[%emt 0:00:00]} (46. Rxa6 Rxh4 47. Kf3 h5 $11) 46... Kf7 {[%emt 0:00:02]} 47. Rxa6 {[%emt 0:00:00]} Rg3 {[%emt 0:00:49]} 48. Kf4 {[%emt 0:00:00]} Rg2 {[%emt 0:00:06]} (48... Rg1 $142 49. Ra4 Ra1 50. Rxb4 Rxa2 51. Rb7+ Ke6) 49. Ra4 $18 {[%emt 0:00:00]} Ke6 {[%emt 0:00:39]} 50. Rxb4 {[%emt 0:00:00]} Rxa2 {[%emt 0:00:06]} 51. Re4+ {[%emt 0:00:00]} Kf7 {[%emt 0:00:06]} 52. b4 {[%emt 0:00:00]} Rb2 {[%emt 0:03:16]} 53. Ke3 {[%emt 0:00:00]} f5 {[%emt 0:00:15]} 54. Rf4 {[%emt 0:00:00]} (54. gxf5 Kf6 55. Rf4 Rb3+ 56. Kd2 Rh3 $18) 54... Ke6 {[%emt 0:00:48]} (54... Rb3+ $142 55. Kd2 Ke6 56. gxf5+ (56. Rxf5 Rxb4 57. Ra5 Rd4+ 58. Kc3 Rxg4 $11) 56... Kf6) 55. gxf5+ $18 {[%emt 0:00:00]} ({Worse is} 55. Rxf5 Rxb4 56. Kf3 Ke7 $11) 55... Ke5 {[%emt 0:00:05]} 56. f6 {[%emt 0:00:00]} (56. Kf3 Rb1 57. Rc4 Rb3+ 58. Ke2 (58. Kg4 Rb1 $14) 58... Kxf5 $18) 56... Rb3+ {[%emt 0:00:17]} 57. Kd2 {[%emt 0:00:00]} 1-0

[Event "Icelandic Championship 2024"]
[Site "Mosfellsbaer"]
[Date "2024.04.23"]
[Round "7.2"]
[White "Ragnarsson, Dagur"]
[Black "Birkisson, Bardur Orn"]
[Result "0-1"]
[ECO "A07"]
[WhiteElo "2333"]
[BlackElo "2169"]
[Annotator "TA"]
[PlyCount "70"]
[EventDate "2024.04.16"]
[EventType "tourn"]
[EventCountry "ISL"]
[SourceTitle "playchess.com"]
[Source "ChessBase"]
[SourceQuality "1"]
[TimeControl "40/5400+30:1800+30"]

{[%evp 9,70,10,12,15,23,19,25,27,31,-8,28,20,17,12,20,24,24,21,12,18,31,0,23,24,18,21,35,-14,0,-39,-3,0,0,0,0,0,0,0,0,-43,0,-19,-30,-22,-24,-19,-28,-28,-19,-44,-68,-69,-31,-99,-76,-227,-246,-240,-229,-300,-300,-855,-849]} 1. Nf3 {[%emt 0:00:54]} d5 {[%emt 0:00:16]} 2. g3 {[%emt 0:00:15]} Bg4 {[%emt 0:01:04]} 3. Bg2 {[%emt 0:00:06]} c6 {[%emt 0:00:53]} 4. O-O {[%emt 0:00:31]} Nd7 {[%emt 0:01:43]} 5. h3 {[%emt 0:00:17]} Bh5 {[%emt 0:02:00]} 6. d4 {[%emt 0:12:04]} Ngf6 {[%emt 0:01:49] [#]} 7. c4 $1 {[%emt 0:00:38]} e6 {[%emt 0:08:24]} 8. cxd5 {[%emt 0:00:12] White has an edge.} exd5 {[%emt 0:01:15]} 9. Ne5 {[%emt 0:00:50]} Bg6 {[%emt 0:13:06]} 10. Nxg6 {[%emt 0:05:33]} hxg6 {[%emt 0:00:36]} 11. Nc3 {[%emt 0:00:04]} Bd6 {[%emt 0:03:09]} 12. Bg5 {[%emt 0:02:50]} O-O {[%emt 0:09:20]} 13. Qc2 {[%emt 0:11:09]} Re8 {[%emt 0:03:02]} 14. Rad1 {[%emt 0:03:52]} Qc7 {[%emt 0:04:24]} 15. Rd3 {[%emt 0:03:14]} Ne4 {[%emt 0:08:36]} 16. Nxe4 {[%emt 0:00:41]} dxe4 {[%emt 0:00:07]} 17. Rc3 {[%emt 0:06:59]} Qa5 {[%emt 0:00:30]} 18. Bd2 {[%emt 0:05:17]} (18. h4 $14 {was preferrable.}) 18... Qxa2 {[%emt 0:05:53]} 19. Rb3 {[%emt 0:11:23] Inhibits Bb4.} Qa4 {[%emt 0:03:07]} 20. Rc1 $1 {[%emt 0:00:06]} (20. Bxe4 $2 Rxe4 (20... Qxd4 21. Rxb7 Qxe4 22. Qxe4 $14) 21. e3 Re7 $19) 20... Nb6 {[%emt 0:04:12]} (20... Qxd4 21. Be3 Qf6 22. Rxb7 $16 (22. Bxe4 Bc5 $15)) 21. e3 $1 {[%emt 0:00:39][%cal Og2f1] Bf1! is the strong threat.} c5 $1 {[%emt 0:13:37]} 22. dxc5 {[%emt 0:11:29]} (22. Bxe4 Rxe4 (22... cxd4 $2 {is the wrong capture.} 23. Bxb7 Be5 24. exd4 $18) 23. Qxe4 Qxb3 $17) 22... Bxc5 {[%emt 0:00:21]} 23. Bf1 {[%emt 0:00:09]} a6 {[%emt 0:02:31] Wards off Bb5} 24. Rc3 {[%emt 0:00:54]} (24. Be1 $5) 24... Bd6 {[%emt 0:01:37]} 25. Qb3 {[%emt 0:01:17]} Bb4 {[%emt 0:03:45]} 26. Qxa4 {[%emt 0:03:57]} Nxa4 {[%emt 0:00:05]} 27. R3c2 {[%emt 0:00:21]} Bxd2 {[%emt 0:00:15]} 28. Rxd2 {[%emt 0:00:04]} Rac8 $36 {[%emt 0:01:32][%mdl 2048] Prevents Rc7. Black has some pressure.} 29. Rxc8 {[%emt 0:07:58]} Rxc8 $11 {[%emt 0:00:06][%mdl 4096] Endgame. KRB-KRN} 30. b3 {[%emt 0:06:02]} Nc3 {[%emt 0:02:50]} 31. Rd6 {[%emt 0:01:53]} (31. h4 $15) 31... Kf8 {[%emt 0:02:00] aiming for ...Ke7.} 32. Rb6 $2 {[%emt 0:00:37] Now White is beyond hope.} (32. Rd7 $17 {was forced.}) 32... Rc7 $19 {[%emt 0:00:14]} 33. Bc4 {[%emt 0:00:11]} Ke7 {[%emt 0:00:41]} 34. Kf1 {[%emt 0:00:49] [#]} Rd7 $1 {[%emt 0:00:16]} 35. Be2 $2 {[%emt 0:01:45]} (35. h4) 35... Nd5 {[%emt 0:01:23] Weighted Error Value: White=0.29 (precise) /Black=0.10 (very precise) .  Mistake:       	White=4     	---        Inaccurate:     	White=5     	Black=4      OK:         	White=7     	Black=5      Best:        	White=1     	Black=3      Strong:       	White=2     	Black=2} 0-1

[Event "Icelandic Championship 2024"]
[Site "Mosfellsbaer"]
[Date "2024.04.23"]
[Round "7.3"]
[White "Gretarsson, Hjorvar Steinn"]
[Black "Stefansson, Vignir Vatnar"]
[Result "1/2-1/2"]
[ECO "D35"]
[WhiteElo "2518"]
[BlackElo "2459"]
[Annotator "RC"]
[PlyCount "68"]
[EventDate "2024.04.16"]
[EventType "tourn"]
[EventCountry "ISL"]
[SourceTitle "playchess.com"]
[Source "ChessBase"]
[SourceQuality "1"]
[TimeControl "40/5400+30:1800+30"]

1. c4 {[%emt 0:00:28]} e6 {[%emt 0:00:05]} 2. Nc3 {[%emt 0:00:05]} d5 {[%emt 0:00:03]} 3. d4 {[%emt 0:00:06]} Be7 {[%emt 0:02:56]} 4. cxd5 {[%emt 0:02:52]} exd5 {[%emt 0:00:00]} 5. Bf4 {[%emt 0:01:37]} Nf6 {[%emt 0:00:00]} 6. e3 {[%emt 0:01:42]} Bf5 {[%emt 0:00:00]} 7. Qb3 {[%emt 0:11:30]} Nc6 {[%emt 0:00:00]} 8. Qxb7 {[%emt 0:08:12]} Nb4 {[%emt 0:00:54]} 9. Rc1 {[%emt 0:15:18]} O-O {[%emt 0:05:27]} 10. a3 {[%emt 0:29:53]} Nc2+ {[%emt 0:03:04]} 11. Rxc2 {[%emt 0:01:56]} Bxc2 {[%emt 0:00:17]} 12. Bxc7 {[%emt 0:03:51]} Qc8 {[%emt 0:37:46]} 13. Ba6 {[%emt 0:02:52]} Qxb7 {[%emt 0:02:47]} 14. Bxb7 {[%emt 0:00:02]} Rab8 {[%emt 0:00:21]} 15. Bxb8 {[%emt 0:00:44]} Rxb8 {[%emt 0:00:07]} 16. Bxd5 {[%emt 0:03:42]} Rxb2 {[%emt 0:03:38]} 17. Bc4 {[%emt 0:01:07]} Bxa3 {[%emt 0:05:06]} 18. Nge2 {[%emt 0:00:26]} a5 {[%emt 0:03:59]} 19. O-O {[%emt 0:01:47]} Bb4 {[%emt 0:00:49]} 20. f3 {[%emt 0:02:49]} a4 {[%emt 0:05:27]} 21. Ra1 {[%emt 0:00:21]} a3 {[%emt 0:00:18]} 22. Nb5 {[%emt 0:06:17]} Bb3 {[%emt 0:03:08]} 23. Bxb3 {[%emt 0:01:04]} Rxb3 {[%emt 0:01:24]} 24. e4 {[%emt 0:00:28]} Bf8 {[%emt 0:02:15]} 25. Nbc3 {[%emt 0:01:03]} Bb4 {[%emt 0:00:42]} 26. Rc1 {[%emt 0:01:28]} Rb2 {[%emt 0:01:26]} 27. Kf1 {[%emt 0:00:58]} h5 {[%emt 0:00:34]} 28. Na4 {[%emt 0:00:41]} Rd2 {[%emt 0:00:53]} 29. Nac3 {[%emt 0:00:51]} h4 {[%emt 0:01:45]} 30. Rb1 {[%emt 0:00:29]} Bxc3 {[%emt 0:07:20]} 31. Nxc3 {[%emt 0:00:01]} Rxd4 {[%emt 0:00:56]} 32. Rb3 {[%emt 0:01:00]} Rd2 {[%emt 0:01:26]} 33. Rxa3 {[%emt 0:00:12]} h3 {[%emt 0:00:07]} 34. gxh3 {[%emt 0:00:49]} Rxh2 {[%emt 0:00:09]} 1/2-1/2

[Event "Icelandic Championship 2024"]
[Site "Mosfellsbaer"]
[Date "2024.04.23"]
[Round "7.4"]
[White "Prudnykova, Olga"]
[Black "Kjartansson, Gudmundur"]
[Result "0-1"]
[ECO "B50"]
[WhiteElo "2263"]
[BlackElo "2480"]
[Annotator "TA"]
[PlyCount "74"]
[EventDate "2024.04.16"]
[EventType "tourn"]
[EventCountry "ISL"]
[SourceTitle "playchess.com"]
[Source "ChessBase"]
[SourceQuality "1"]
[TimeControl "40/5400+30:1800+30"]

{[%evp 9,74,7,1,-6,-5,-10,21,12,9,0,11,7,12,30,9,-11,25,29,24,19,38,24,73,22,33,18,10,7,21,4,0,0,0,0,0,-38,-49,-383,-375,-29972,-29963,-29981,-2459,-2800,-1591,-4898,-3623,-5010,-3011,-3729,-2501,-2444,-1764,-4918,-4910,-2308,-2932,-29982,-29983,-29985,-29986,-29988,-29989,-29990,-29991,-29991,-29990]} 1. e4 {[%emt 0:00:03]} c5 {[%emt 0:00:10]} 2. Nf3 {[%emt 0:00:03]} d6 {[%emt 0:00:05]} 3. Nc3 {[%emt 0:00:36]} Nf6 {[%emt 0:00:31]} 4. e5 {[%emt 0:00:07]} dxe5 {[%emt 0:00:05]} 5. Nxe5 {[%emt 0:00:03]} a6 {[%emt 0:00:25]} 6. Qe2 {[%emt 0:00:19]} Qc7 {[%emt 0:00:52]} 7. b3 {[%emt 0:00:13]} Nc6 {[%emt 0:12:31]} 8. Nxc6 {[%emt 0:00:16] The position is equal.} Qxc6 {[%emt 0:00:04]} 9. Bb2 {[%emt 0:00:32]} Bf5 {[%emt 0:02:01]} 10. O-O-O {[%emt 0:01:22][%cal Be1c1,Bc1b1,Bb1b2][%mdl 32]} e6 {[%emt 0:04:12]} 11. Rg1 {[%emt 0:11:34]} h5 {[%emt 0:03:43]} 12. f3 {[%emt 0:05:34]} h4 {[%emt 0:07:31]} 13. g4 {[%emt 0:04:15]} hxg3 {[%emt 0:00:14]} 14. hxg3 {[%emt 0:00:02]} Bd6 {[%emt 0:01:03]} 15. Kb1 {[%emt 0:09:00]} Kf8 {[%emt 0:04:14]} (15... O-O-O $11) 16. d3 {[%emt 0:05:38]} (16. Bg2 $16) 16... Qc7 $1 $11 {[%emt 0:08:37]} 17. Ne4 {[%emt 0:05:16]} Be5 {[%emt 0:10:06]} 18. Nxf6 {[%emt 0:01:02]} (18. Bxe5 {with more complications.} Qxe5 19. Nxf6 Qxe2 20. Nd7+) 18... Bxb2 {[%emt 0:04:23]} 19. Kxb2 {[%emt 0:00:04]} gxf6 {[%emt 0:00:10]} 20. f4 {[%emt 0:00:16]} Rg8 {[%emt 0:00:50] Hoping for ...Bg4.} 21. Re1 {[%emt 0:12:08]} a5 {[%emt 0:03:58]} 22. Qh2 {[%emt 0:06:59][%cal Og3g4]} a4 {[%emt 0:00:57] White must now prevent ...Qa5.} 23. g4 $2 {[%emt 0:00:47][%mdl 8192] This move loses the game for White.} Qa5 $19 {[%emt 0:00:51]} (23... Rxg4 24. Qh8+ (24. Rxg4 $2 Qa5 $19) 24... Ke7 25. Qxa8 $19) (23... Bxg4 24. Be2 Qa5 (24... Bxe2 $2 25. Rxg8+ Kxg8 26. Qh6 $18) 25. Bxg4 $11) 24. Be2 $2 {[%emt 0:05:04]} (24. Rd1 $19 axb3 (24... Bxg4 25. Be2 $17) (24... Rxg4 $2 25. Rxg4 Bxg4 26. Be2 $19) 25. axb3) 24... axb3 $1 {[%emt 0:10:11]} 25. axb3 {[%emt 0:00:06] [#]} c4 $1 {[%emt 0:01:04][%mdl 512]} 26. Rb1 {[%emt 0:04:24]} c3+ {[%emt 0:03:02]} 27. Kc1 {[%emt 0:00:05]} Qa3+ {[%emt 0:00:10]} 28. Kd1 {[%emt 0:00:05] [#]} Qb2 $3 {[%emt 0:00:07][%cal Rb2b1][%mdl 512]} 29. Ke1 {[%emt 0:01:17]} Qxb1+ {[%emt 0:00:36]} 30. Kf2 {[%emt 0:00:57]} Qxc2 {[%emt 0:01:01][%cal Oa8a2] ( -> ...Ra2!)} 31. Qh6+ {[%emt 0:01:46]} Ke7 {[%emt 0:00:06]} 32. Qh1 {[%emt 0:01:37] [#]} Ra7 $1 {[%emt 0:03:15]} 33. Qf3 {[%emt 0:04:17] [#]} (33. g5 Bxd3) 33... Bxg4 $1 {[%emt 0:02:58] Black mates.} 34. Rxg4 {[%emt 0:00:43]} (34. Qe4 Qxe2+) 34... Rxg4 {[%emt 0:00:04]} 35. Qxg4 {[%emt 0:02:35]} Qxb3 {[%emt 0:01:07]} 36. f5 {[%emt 0:00:56]} c2 {[%emt 0:00:59]} 37. Qf4 {[%emt 0:01:05]} Qb6+ {[%emt 0:00:10] Weighted Error Value: White=0.47/Black=0.23 (precise) .  Loses game:     	White=1     	---        Mistake:       	White=2     	Black=1      Inaccurate:     	White=1     	Black=2      OK:         	White=6     	Black=8      Best:        	---       	Black=1      Strong:       	---       	Black=2} 0-1

[Event "Icelandic Championship 2024"]
[Site "Mosfellsbaer"]
[Date "2024.04.23"]
[Round "7.5"]
[White "Heimisson, Hilmir Freyr"]
[Black "Domalchuk-Jonasson, Aleksandr"]
[Result "1/2-1/2"]
[ECO "D02"]
[WhiteElo "2361"]
[BlackElo "2368"]
[Annotator "TA"]
[PlyCount "81"]
[EventDate "2024.04.16"]
[EventType "tourn"]
[EventCountry "ISL"]
[SourceTitle "playchess.com"]
[Source "ChessBase"]
[SourceQuality "1"]
[TimeControl "40/5400+30:1800+30"]

{[%evp 15,81,41,45,34,38,-21,46,41,29,30,31,33,34,16,32,30,29,27,33,21,22,32,25,16,17,17,14,31,21,20,22,13,20,21,24,18,26,25,34,32,70,0,15,8,25,0,0,0,0,0,0,0,0,0,0,0,0,0,0,0,0,0,0,0,0,0,0,0]} 1. Nf3 {[%emt 0:00:43]} d5 {[%emt 0:00:19]} 2. g3 {[%emt 0:00:27]} c5 {[%emt 0:00:42]} 3. Bg2 {[%emt 0:00:40]} Nc6 {[%emt 0:00:07]} 4. d4 {[%emt 0:00:23]} Nf6 {[%emt 0:00:16]} 5. O-O {[%emt 0:00:58]} cxd4 {[%emt 0:00:23]} 6. Nxd4 {[%emt 0:00:13]} e5 {[%emt 0:00:07]} 7. Nxc6 {[%emt 0:00:07]} bxc6 {[%emt 0:00:03]} 8. c4 {[%emt 0:00:11]} Be6 {[%emt 0:00:11]} 9. Nc3 {[%emt 0:01:18]} Rc8 {[%emt 0:01:06]} 10. Qa4 {[%emt 0:04:01]} (10. cxd5 $1 $14 cxd5 11. Qa4+ Bd7 12. Qxa7) 10... Qd7 {[%emt 0:00:11]} (10... d4 $1 $11 11. Rd1 (11. Bxc6+ Rxc6 12. Qxc6+ Bd7 $15) 11... Nd7) 11. cxd5 {[%emt 0:04:18] White is slightly better.} cxd5 {[%emt 0:00:03]} 12. Qxd7+ {[%emt 0:00:10]} Kxd7 {[%emt 0:00:05]} 13. Rd1 {[%emt 0:00:05][%cal Oc1g5]} Bc5 {[%emt 0:00:05]} 14. Nxd5 {[%emt 0:04:11]} (14. Bxd5 Nxd5 15. Nxd5 Bxd5 16. Rxd5+ Ke6 $11) 14... Nxd5 {[%emt 0:00:07]} 15. Bxd5 {[%emt 0:00:04]} Bxd5 {[%emt 0:00:04]} 16. Rxd5+ {[%emt 0:00:04]} Ke6 {[%emt 0:00:04]} 17. Rd2 {[%emt 0:00:03]} Rhd8 {[%emt 0:00:05]} 18. Kf1 {[%emt 0:00:04]} Bb6 {[%emt 0:00:03][%cal Oc8c1]} 19. Rxd8 {[%emt 0:00:08]} Rxd8 {[%emt 0:00:06]} 20. Be3 {[%emt 0:00:07]} Bxe3 {[%emt 0:00:04]} 21. fxe3 $11 {[%emt 0:00:06][%mdl 4096] Endgame. KR-KR} Rd2 {[%emt 0:00:03]} 22. Rb1 {[%emt 0:00:06]} Kf5 {[%emt 0:00:10]} 23. Kf2 {[%emt 0:03:41]} Ke4 {[%emt 0:06:46]} 24. a4 {[%emt 0:14:50]} Rd6 {[%emt 0:08:03]} 25. b4 {[%emt 0:01:00]} Rf6+ {[%emt 0:15:48]} 26. Ke1 {[%emt 0:15:22]} Kxe3 {[%emt 0:23:27]} 27. b5 {[%emt 0:11:42]} Kd4 {[%emt 0:09:30]} 28. Kd2 {[%emt 0:16:20]} (28. Rc1 $14) 28... Rd6 {[%emt 0:10:06]} 29. Rc1 {[%emt 0:03:53]} Rd7 {[%emt 0:04:51] Dodges Rc7} 30. Rc3 {[%emt 0:02:49] [#] Black must now prevent Rd3+.} Ke4+ {[%emt 0:05:13] The position is equal.} 31. Kc2 {[%emt 0:01:16]} f5 {[%emt 0:00:05]} 32. h4 {[%emt 0:05:36]} h5 {[%emt 0:07:36]} 33. Kb3 {[%emt 0:01:54] Hoping for a5.} f4 {[%emt 0:00:29]} 34. Kb4 {[%emt 0:01:27] [#] Strongly threatening a5.} Kf5 {[%emt 0:07:14]} 35. gxf4 {[%emt 0:01:50]} exf4 {[%emt 0:00:04]} 36. a5 {[%emt 0:00:12]} Kg4 {[%emt 0:01:36]} 37. b6 {[%emt 0:03:46]} axb6 {[%emt 0:00:02]} (37... Kxh4 $2 {is the wrong capture.} 38. Rc7 axb6 39. Rxd7 $18) 38. axb6 {[%emt 0:00:02]} Kxh4 {[%emt 0:00:10] aiming for ...g5.} 39. Rc7 {[%emt 0:00:08]} Rd1 {[%emt 0:03:35] Threatens to win with ...g5.} 40. Rxg7 {[%emt 0:01:19]} Rd2 {[%emt 0:00:52]} 41. Re7 {[%emt 0:07:33] Weighted Error Value: White=0.08 (flawless) /Black=0.06 (flawless) .  Mistake:       	White=2     	Black=1      Inaccurate:     	---       	Black=1      OK:         	White=16    	Black=16     Best:        	White=1     	Black=3} 1/2-1/2

[Event "Icelandic Championship 2024"]
[Site "Mosfellsbaer"]
[Date "2024.04.23"]
[Round "7.6"]
[White "Stefansson, Hannes"]
[Black "Gretarsson, Helgi Ass"]
[Result "0-1"]
[ECO "B07"]
[WhiteElo "2493"]
[BlackElo "2468"]
[Annotator "RC"]
[PlyCount "82"]
[EventDate "2024.04.16"]
[EventType "tourn"]
[EventCountry "ISL"]
[SourceTitle "playchess.com"]
[Source "ChessBase"]
[SourceQuality "1"]
[TimeControl "40/5400+30:1800+30"]

1. e4 {[%emt 0:00:14]} d6 {[%emt 0:00:08]} 2. d4 {[%emt 0:00:34]} Nf6 {[%emt 0:00:05]} 3. Nc3 {[%emt 0:00:27]} g6 {[%emt 0:00:05]} 4. Be3 {[%emt 0:03:20]} c6 {[%emt 0:00:09]} 5. Nf3 {[%emt 0:02:07]} Nbd7 {[%emt 0:08:57]} 6. h3 {[%emt 0:04:25]} Qc7 {[%emt 0:00:48]} 7. a4 {[%emt 0:07:30]} Bg7 {[%emt 0:01:03]} 8. Bc4 {[%emt 0:04:48]} O-O {[%emt 0:03:45]} 9. Ba2 {[%emt 0:05:42]} b6 {[%emt 0:26:07]} 10. O-O {[%emt 0:00:45]} Bb7 {[%emt 0:00:25]} 11. Qd2 {[%emt 0:04:03]} Rad8 {[%emt 0:12:25]} 12. Bh6 {[%emt 0:02:42]} d5 {[%emt 0:15:17]} 13. Bxg7 {[%emt 0:08:47]} Kxg7 {[%emt 0:00:20]} 14. e5 {[%emt 0:01:24]} Ne4 {[%emt 0:06:41]} 15. Nxe4 {[%emt 0:01:20]} dxe4 {[%emt 0:00:01]} 16. Ng5 {[%emt 0:00:23]} h6 {[%emt 0:00:03]} 17. Nxf7 {[%emt 0:08:17]} Rxf7 {[%emt 0:00:06]} 18. Bxf7 {[%emt 0:01:45]} Kxf7 {[%emt 0:00:01]} 19. Qxh6 {[%emt 0:00:32]} Nf8 {[%emt 0:08:26]} 20. f3 {[%emt 0:00:45]} e3 {[%emt 0:00:36]} 21. Qxe3 {[%emt 0:01:37]} Ne6 {[%emt 0:01:27]} 22. Rad1 {[%emt 0:01:42]} Qd7 {[%emt 0:03:50]} 23. Qb3 {[%emt 0:08:31]} Kg7 {[%emt 0:00:42]} 24. Qe3 {[%emt 0:04:27]} Qd5 {[%emt 0:00:22]} 25. b3 {[%emt 0:01:41]} b5 {[%emt 0:00:28]} 26. Rfe1 {[%emt 0:07:12]} a5 {[%emt 0:03:32]} 27. Kh1 {[%emt 0:07:05]} Rh8 {[%emt 0:01:47]} 28. Qe4 {[%emt 0:01:25]} b4 {[%emt 0:02:47]} 29. Re3 {[%emt 0:02:30]} Rd8 {[%emt 0:01:34]} 30. Red3 {[%emt 0:01:48]} Qd7 {[%emt 0:01:38]} 31. Kg1 {[%emt 0:00:54]} Rf8 {[%emt 0:00:40]} 32. Qe3 {[%emt 0:00:37]} Rd8 {[%emt 0:00:14]} 33. Kf2 {[%emt 0:01:41]} Rf8 {[%emt 0:00:05]} 34. R3d2 {[%emt 0:00:38]} Nf4 {[%emt 0:00:57]} 35. c4 {[%emt 0:01:03]} bxc3 {[%emt 0:00:55]} 36. Qxc3 {[%emt 0:00:05]} Qd5 {[%emt 0:00:02]} 37. Re1 {[%emt 0:01:52]} Ne6 {[%emt 0:01:31]} 38. Ke3 {[%emt 0:01:25]} c5 {[%emt 0:00:12]} 39. Kf2 {[%emt 0:02:10]} cxd4 {[%emt 0:00:03]} 40. Qd3 {[%emt 0:00:30]} Ng5 {[%emt 0:01:02]} 41. Qxd4 {[%emt 0:31:37]} Nxf3 {[%emt 0:30:31]} 0-1